bitfinex/quotes_BTCUSD_20250901
["timestamp","ask_amount","ask_price","bid_price","bid_amount"]
[1756762268213,0.66818309,108220.0,108210.0,0.00837874]
[1756762268438,1.12023416,108220.0,108210.0,0.00635874]
[1756762269131,5.98902681,108220.0,108210.0,0.00535874]
[1756762269556,5.98902681,108220.0,108210.0,0.00235874]
[1756762269557,6.00896563,108220.0,108210.0,0.00235874]
[1756762269799,0.1848258,108210.0,108200.0,0.00142569]
[1756762270032,6.11606604,108210.0,108200.0,0.00142569]
[1756762270310,5.80038101,108210.0,108200.0,0.00142569]
[1756762270581,5.54978502,108210.0,108200.0,0.00142569]
[1756762270782,5.72818991,108210.0,108200.0,0.00142569]
[1756762270990,5.72519991,108210.0,108200.0,0.00344569]
[1756762271207,5.70547502,108210.0,108200.0,0.00344569]
[1756762271425,5.70547502,108210.0,108200.0,0.00142569]
[1756762271644,5.80038101,108210.0,108200.0,0.00142569]
[1756762271862,5.82210159,108210.0,108200.0,0.00142569]
[1756762272078,5.7281856,108210.0,108200.0,0.00142569]
[1756762272299,0.18485996,108190.0,108170.0,0.14361235]
[1756762272523,0.72000968,108190.0,108180.0,0.00202]
[1756762272665,0.72201968,108190.0,108180.0,0.00202]
[1756762272905,0.7497907,108190.0,108180.0,0.00202]
[1756762273316,0.84170669,108190.0,108180.0,0.00202]
[1756762273725,0.18489158,108180.0,108160.0,0.19559534]
[1756762273922,0.18778028,108180.0,108170.0,0.00202]
[1756762274328,0.18778028,108180.0,108170.0,0.00516]
[1756762274547,0.18778028,108180.0,108170.0,0.19005414]
[1756762274967,0.19025276,108180.0,108170.0,0.19005414]
[1756762275164,0.20449655,108180.0,108170.0,0.19005414]
[1756762275371,0.20249655,108180.0,108170.0,0.0003]
[1756762275567,0.20449655,108180.0,108170.0,0.0003]
[1756762275769,0.20549655,108180.0,108170.0,0.0003]
[1756762276270,0.20449655,108180.0,108170.0,0.18519414]
[1756762276495,0.01960497,108180.0,108170.0,0.18519414]
[1756762276741,0.00247248,108180.0,108170.0,0.54451878]
[1756762277091,0.00247248,108180.0,108170.0,0.18519414]
[1756762277673,0.00347248,108180.0,108170.0,0.18538414]
[1756762277887,0.00347248,108180.0,108160.0,0.43035826]
[1756762278103,0.00347248,108180.0,108170.0,0.18489414]
[1756762278530,0.18834953,108180.0,108170.0,0.18489414]
[1756762278759,0.18734953,108180.0,108170.0,0.18489414]
[1756762278976,0.00347248,108180.0,108170.0,0.18489414]
[1756762279408,0.19325222,108180.0,108170.0,0.15868]
[1756762279630,0.21815452,108180.0,108160.0,0.43035826]
[1756762279841,0.23523463,108180.0,108160.0,0.68095425]
[1756762280087,0.24651143,108180.0,108160.0,0.68095425]
[1756762280302,0.24651143,108180.0,108160.0,0.32162961]
[1756762280509,0.24151143,108180.0,108170.0,0.18489414]
[1756762280694,0.24451143,108180.0,108170.0,0.18489414]
[1756762281004,0.24750143,108180.0,108160.0,0.68095425]
[1756762281467,0.23522463,108180.0,108170.0,0.18489414]
[1756762281698,0.23323463,108180.0,108170.0,0.18489414]
[1756762281925,0.23623463,108180.0,108170.0,0.18489414]
[1756762282110,0.2332291,108180.0,108170.0,0.18489414]
[1756762282397,0.2322291,108180.0,108160.0,0.68095425]
[1756762282668,0.2322291,108180.0,108170.0,0.18489414]
[1756762282868,0.24724956,108180.0,108170.0,0.18489414]
[1756762283047,0.22718498,108180.0,108170.0,0.18489414]
[1756762283355,0.24425924,108180.0,108170.0,0.18489414]
[1756762283766,0.24225924,108180.0,108170.0,0.18489414]
[1756762283973,0.24325924,108180.0,108160.0,0.52227425]
[1756762284181,0.24925924,108180.0,108160.0,0.68095425]
[1756762284395,0.24725924,108180.0,108160.0,0.68095425]
[1756762284578,0.24925924,108180.0,108160.0,0.68095425]
[1756762284798,0.24625924,108180.0,108160.0,0.32162961]
[1756762285006,0.24725924,108180.0,108160.0,0.68095425]
[1756762285214,0.24925924,108180.0,108160.0,0.68095425]
[1756762285451,0.24825924,108180.0,108160.0,0.68095425]
[1756762285877,0.24724924,108180.0,108160.0,0.68095425]
[1756762286127,0.24724924,108180.0,108160.0,0.66676515]
[1756762286352,0.24724924,108180.0,108170.0,0.18489414]
[1756762286575,0.24425924,108180.0,108170.0,0.18489414]
[1756762286802,0.24724924,108180.0,108170.0,0.18489414]
[1756762287210,0.24925924,108180.0,108160.0,0.66676515]
[1756762287424,0.24625924,108180.0,108160.0,0.66676515]
[1756762287680,0.24725924,108180.0,108160.0,0.66676515]
[1756762287913,0.24925924,108180.0,108160.0,0.66676515]
[1756762288124,0.03026348,108180.0,108170.0,0.18489414]
[1756762288353,0.03126348,108180.0,108170.0,0.18489414]
[1756762288601,0.02926348,108180.0,108170.0,0.53002968]
[1756762289043,0.02926348,108180.0,108170.0,0.18489414]
[1756762289044,0.03126348,108180.0,108170.0,0.18489414]
[1756762289264,0.00347248,108180.0,108170.0,0.62194567]
[1756762289987,0.00347248,108180.0,108170.0,0.63291377]
[1756762290241,0.00047248,108180.0,108170.0,0.62194567]
[1756762290437,0.00247248,108180.0,108170.0,0.62194567]
[1756762290663,0.00247248,108180.0,108170.0,0.78062567]
[1756762291092,0.00347248,108180.0,108170.0,0.59573153]
[1756762291302,0.18834953,108180.0,108170.0,0.78062567]
[1756762292489,0.00347248,108180.0,108170.0,0.78062567]
[1756762295494,0.18834953,108180.0,108170.0,0.43549013]
[1756762295717,0.00347248,108180.0,108170.0,0.43549013]
[1756762296157,0.00347248,108180.0,108170.0,0.78062567]
[1756762296819,0.00662248,108180.0,108170.0,0.62194567]
[1756762297031,0.00864248,108180.0,108170.0,0.78062567]
[1756762297256,0.00662248,108180.0,108170.0,0.78062567]
[1756762297688,0.00662248,108180.0,108170.0,0.43549013]
[1756762297916,0.00662248,108180.0,108170.0,0.78062567]
[1756762298133,0.00662248,108180.0,108170.0,0.43549013]
[1756762298347,0.00662248,108180.0,108170.0,0.78062567]
[1756762298989,0.00347248,108180.0,108170.0,0.78062567]
[1756762300366,0.00347248,108180.0,108170.0,0.43549013]
[1756762300587,0.00347248,108180.0,108170.0,0.78062567]
[1756762301956,0.00347248,108180.0,108170.0,0.27681013]
[1756762302214,0.19351953,108180.0,108170.0,0.09191599]
[1756762302710,0.1848947,108170.0,108160.0,0.18491057]
[1756762302944,0.1869147,108170.0,108160.0,0.34355057]
[1756762303194,0.1900647,108170.0,108160.0,0.34355057]
[1756762304300,0.1920647,108170.0,108160.0,0.34355057]
[1756762304519,0.1930647,108170.0,108160.0,0.34355057]
[1756762306033,0.00817,108170.0,108160.0,0.34355057]
[1756762306257,0.19595311,108170.0,108160.0,0.34355057]
[1756762306494,0.19306414,108170.0,108160.0,0.34355057]
[1756762306710,0.00817,108170.0,108160.0,0.34355057]
[1756762307156,0.003,108170.0,108160.0,0.68868611]
[1756762308446,0.00615,108170.0,108160.0,0.68868611]
[1756762308667,0.00817,108170.0,108160.0,0.68868611]
[1756762308883,0.003,108170.0,108160.0,0.68868611]
[1756762309370,0.00615,108170.0,108160.0,0.68868611]
[1756762310735,0.00615,108170.0,108160.0,0.34355057]
[1756762310946,0.00615,108170.0,108160.0,0.68868611]
[1756762312843,0.00615,108170.0,108160.0,0.34355057]
[1756762313056,0.00817,108170.0,108160.0,0.68868611]
[1756762313896,0.00817,108170.0,108160.0,0.34355057]
[1756762316514,0.19306414,108170.0,108160.0,0.18491057]
[1756762316754,0.00817,108170.0,108160.0,0.34355057]
[1756762316979,0.00817,108170.0,108160.0,0.18491057]
[1756762316980,0.19306414,108170.0,108160.0,0.18491057]
[1756762317198,0.19306414,108170.0,108160.0,0.34355057]
[1756762317411,0.00817,108170.0,108160.0,0.34355057]
[1756762318035,0.00615,108170.0,108160.0,0.34355057]
[1756762318249,0.00817,108170.0,108160.0,0.68868611]
[1756762318462,0.00615,108170.0,108160.0,0.68868611]
[1756762319087,0.003,108170.0,108160.0,0.68868611]
[1756762319325,0.00817,108170.0,108160.0,0.34355057]
[1756762320412,0.003,108170.0,108160.0,0.34355057]
[1756762320868,0.003,108170.0,108160.0,0.7806021]
[1756762321073,0.00615,108170.0,108160.0,0.7806021]
[1756762321281,0.003,108170.0,108160.0,0.7806021]
[1756762321485,0.19306414,108170.0,108150.0,0.53925061]
[1756762321695,0.18991414,108170.0,108150.0,0.6311666]
[1756762321938,0.18991414,108170.0,108160.0,0.15864]
[1756762322160,0.18991414,108170.0,108150.0,0.28603106]
[1756762322363,0.18492834,108150.0,108140.0,0.15898832]
[1756762322591,0.19009834,108150.0,108140.0,0.15898832]
[1756762322805,0.53523388,108150.0,108140.0,0.00034832]
[1756762323039,0.76592993,108150.0,108140.0,0.00034832]
[1756762323310,0.79373093,108150.0,108140.0,0.00034832]
[1756762323510,0.88564692,108150.0,108140.0,0.00034832]
[1756762323954,0.9272458,108150.0,108140.0,0.00034832]
[1756762324176,0.9282458,108150.0,108140.0,0.00034832]
[1756762324862,0.9292458,108150.0,108140.0,0.00034832]
[1756762325287,0.9272458,108150.0,108140.0,0.00034832]
[1756762325719,0.58315026,108150.0,108140.0,0.00034832]
[1756762325951,0.9292858,108150.0,108140.0,0.00034832]
[1756762326390,0.9293658,108150.0,108140.0,0.00034832]
[1756762326794,0.51233421,108150.0,108140.0,0.00034832]
[1756762326997,0.85746975,108150.0,108140.0,0.00034832]
[1756762327228,0.42041822,108150.0,108140.0,0.00034832]
[1756762328095,0.26145822,108150.0,108140.0,0.00034832]
[1756762328310,0.42045822,108150.0,108140.0,0.00034832]
[1756762329062,0.42057822,108150.0,108140.0,0.00034832]
[1756762330360,0.48307633,108150.0,108140.0,0.00034832]
[1756762330794,0.82821187,108150.0,108140.0,0.00034832]
[1756762331224,1.2652634,108150.0,108140.0,0.00034832]
[1756762331666,0.92012786,108150.0,108140.0,0.00034832]
[1756762332996,1.6052634,108150.0,108140.0,0.00034832]
[1756762334318,1.26012786,108150.0,108140.0,0.00034832]
[1756762334771,1.6052634,108150.0,108140.0,0.00034832]
[1756762336322,1.26012786,108150.0,108140.0,0.00034832]
[1756762336541,1.6052634,108150.0,108140.0,0.00034832]
[1756762337380,1.6067034,108150.0,108140.0,0.00034832]
[1756762337608,1.4461434,108150.0,108140.0,0.00034832]
[1756762337821,1.6067034,108150.0,108140.0,0.00034832]
[1756762338034,1.6047034,108150.0,108140.0,0.00034832]
[1756762338254,1.6067034,108150.0,108140.0,0.00034832]
[1756762338732,1.61153516,108150.0,108140.0,0.00034832]
[1756762338955,1.61253516,108150.0,108140.0,0.00034832]
[1756762339816,1.61273516,108150.0,108140.0,0.00034832]
[1756762340071,1.26751962,108150.0,108140.0,0.00034832]
[1756762340289,1.26551962,108150.0,108140.0,0.00034832]
[1756762340504,1.61165516,108150.0,108140.0,0.00034832]
[1756762341356,0.52494544,108140.0,108120.0,1e-08]
[1756762341579,0.5286812,108110.0,108100.0,0.00048472]
[1756762341800,1.12851273,108110.0,108100.0,0.00048472]
[1756762342013,1.15956873,108110.0,108100.0,0.00048472]
[1756762342480,1.21128933,108110.0,108100.0,0.00048472]
[1756762342927,1.21176122,108110.0,108100.0,0.00048472]
[1756762343143,1.30367721,108110.0,108100.0,0.00048472]
[1756762343362,1.47822613,108110.0,108100.0,0.00048472]
[1756762343600,1.45367721,108110.0,108100.0,0.00048472]
[1756762344058,1.4687152,108110.0,108100.0,0.00048472]
[1756762344568,0.95854167,108110.0,108100.0,0.00048472]
[1756762344801,1.3187152,108110.0,108100.0,0.00048472]
[1756762345023,1.12051779,108110.0,108100.0,0.00048472]
[1756762345264,1.30551455,108110.0,108100.0,0.00048472]
[1756762345472,1.52663455,108110.0,108100.0,0.00048472]
[1756762345683,6.05803519,108110.0,108100.0,0.00048472]
[1756762346123,6.41820872,108110.0,108100.0,0.00048472]
[1756762346364,6.25544872,108110.0,108100.0,0.00048472]
[1756762346582,6.3897798,108110.0,108100.0,0.00048472]
[1756762346788,6.3927798,108110.0,108100.0,0.00048472]
[1756762347235,6.3957798,108110.0,108100.0,0.00048472]
[1756762347872,6.2457798,108110.0,108100.0,0.00048472]
[1756762349579,5.88560627,108110.0,108100.0,0.00048472]
[1756762349798,6.2457798,108110.0,108100.0,0.00048472]
[1756762350276,6.2457798,108110.0,108080.0,0.01162383]
[1756762350277,0.18503099,108090.0,108080.0,0.01162383]
[1756762350503,6.04492235,108090.0,108080.0,0.01162383]
[1756762350722,6.04729125,108090.0,108080.0,0.01162383]
[1756762351626,6.04733125,108090.0,108080.0,0.01162383]
[1756762351864,6.04933125,108090.0,108080.0,0.01162383]
[1756762352955,6.07715525,108090.0,108080.0,0.01162383]
[1756762353185,5.91823525,108090.0,108080.0,0.01162383]
[1756762353399,6.07911525,108090.0,108080.0,0.01162383]
[1756762353622,5.91823525,108090.0,108080.0,0.01162383]
[1756762353839,6.07907525,108090.0,108080.0,0.01162383]
[1756762354112,5.91823525,108090.0,108080.0,0.01162383]
[1756762354334,6.04202923,108090.0,108080.0,0.01162383]
[1756762355028,6.04203485,108090.0,108080.0,0.01162383]
[1756762355236,0.04880834,108090.0,108080.0,0.01175383]
[1756762355444,0.21974609,108090.0,108080.0,0.01175383]
[1756762355658,0.031824,108090.0,108080.0,0.19680194]
[1756762355877,0.19192209,108090.0,108080.0,0.01175383]
[1756762356087,0.76381965,108090.0,108080.0,0.01170383]
[1756762356293,0.80727051,108090.0,108080.0,0.01162383]
[1756762356503,1.14727051,108090.0,108080.0,0.01162383]
[1756762356711,0.97912051,108090.0,108080.0,0.01170383]
[1756762356931,0.77978698,108090.0,108080.0,0.01170383]
[1756762357133,1.14096051,108090.0,108080.0,0.01170383]
[1756762357341,1.14427051,108090.0,108080.0,0.01162383]
[1756762357553,1.14327051,108090.0,108080.0,0.01162383]
[1756762357768,1.14427051,108090.0,108080.0,0.01270383]
[1756762357975,1.14527051,108090.0,108080.0,0.01170383]
[1756762358395,1.14627051,108090.0,108080.0,0.01270383]
[1756762359022,0.52504811,108080.0,108070.0,0.41000001]
[1756762359223,0.18506523,108070.0,108060.0,0.00157345]
[1756762359468,0.25902672,108070.0,108060.0,0.00157345]
[1756762359654,0.80668384,108070.0,108060.0,0.00157345]
[1756762359864,0.81108384,108070.0,108060.0,0.00157345]
[1756762360069,0.90299983,108070.0,108060.0,0.00157345]
[1756762360699,0.94810269,108070.0,108060.0,0.00157345]
[1756762361320,0.95210269,108070.0,108060.0,0.00157345]
[1756762361537,0.8601867,108070.0,108060.0,0.00157345]
[1756762361757,0.6992267,108070.0,108060.0,0.00165345]
[1756762361975,0.8569567,108070.0,108060.0,0.00165345]
[1756762362183,0.8601067,108070.0,108060.0,0.00157345]
[1756762362612,0.2555558,108070.0,108060.0,0.00165345]
[1756762362844,0.2555558,108070.0,108060.0,0.00157345]
[1756762362845,1.30242306,108070.0,108060.0,0.00157345]
[1756762363278,0.78136953,108070.0,108060.0,0.00165345]
[1756762363486,1.30250306,108070.0,108060.0,0.00157345]
[1756762364144,6.15254906,108070.0,108060.0,0.00157345]
[1756762364578,6.15250906,108070.0,108060.0,0.00157345]
[1756762365109,6.13552135,108070.0,108060.0,0.00157345]
[1756762365334,6.1525139,108070.0,108060.0,0.00157345]
[1756762366371,5.9915939,108070.0,108060.0,0.00157345]
[1756762366574,6.1525539,108070.0,108060.0,0.00157345]
[1756762366836,5.90300616,108070.0,108060.0,0.00157345]
[1756762367110,1.21384016,108070.0,108060.0,0.00157345]
[1756762368106,0.68747663,108070.0,108060.0,0.00165345]
[1756762368314,1.20849016,108070.0,108060.0,0.00165345]
[1756762369379,1.2334358,108070.0,108060.0,0.00157345]
[1756762369578,1.32535179,108070.0,108060.0,0.00157345]
[1756762371964,6.17539779,108070.0,108060.0,0.00157345]
[1756762372195,6.20626679,108070.0,108060.0,0.00157345]
[1756762375553,6.19993291,108070.0,108060.0,0.00157345]
[1756762375771,6.20632913,108070.0,108060.0,0.00157345]
[1756762377247,6.04548913,108070.0,108060.0,0.00157345]
[1756762377453,6.20608913,108070.0,108060.0,0.00157345]
[1756762378520,0.73164739,108070.0,108060.0,0.00165345]
[1756762378739,1.25769092,108070.0,108060.0,0.00165345]
[1756762378956,6.11413867,108070.0,108060.0,0.00157345]
[1756762379161,5.75398367,108070.0,108060.0,0.00157345]
[1756762379388,6.1141572,108070.0,108060.0,0.00157345]
[1756762379602,6.20607319,108070.0,108060.0,0.00157345]
[1756762381309,6.23905602,108070.0,108060.0,0.00157345]
[1756762381483,6.20607319,108070.0,108060.0,0.00157345]
[1756762384321,6.35607319,108070.0,108060.0,0.00157345]
[1756762384572,6.38905602,108070.0,108060.0,0.00157345]
[1756762384789,6.38265427,108070.0,108060.0,0.00157345]
[1756762385012,6.38903251,108070.0,108060.0,0.00157345]
[1756762385448,6.36456147,108070.0,108060.0,0.00157345]
[1756762386543,6.41403572,108070.0,108060.0,0.00157345]
[1756762387386,6.38105289,108070.0,108060.0,0.00157345]
[1756762389795,6.02087936,108070.0,108060.0,0.00157345]
[1756762390007,6.38105289,108070.0,108060.0,0.00157345]
[1756762390237,6.71305476,108070.0,108060.0,0.00157345]
[1756762390669,6.74589648,108070.0,108060.0,0.00157345]
[1756762391770,6.74591619,108070.0,108060.0,0.00157345]
[1756762392238,6.74595619,108070.0,108060.0,0.00157345]
[1756762392453,6.75451152,108070.0,108060.0,0.00157345]
[1756762393088,6.71388026,108070.0,108060.0,0.00157345]
[1756762393529,6.66440601,108070.0,108060.0,0.00157345]
[1756762394716,6.70544979,108070.0,108060.0,0.00157345]
[1756762395114,6.70548418,108070.0,108060.0,0.00157345]
[1756762395969,6.73010786,108070.0,108060.0,0.00157345]
[1756762396173,6.72155774,108070.0,108060.0,0.00157345]
[1756762396388,6.73010672,108070.0,108060.0,0.00157345]
[1756762397134,6.72155774,108070.0,108060.0,0.00157345]
[1756762400424,6.56095774,108070.0,108060.0,0.00157345]
[1756762400638,5.83594062,108070.0,108060.0,0.00157345]
[1756762400851,6.72127774,108070.0,108060.0,0.00157345]
[1756762401487,6.68843602,108070.0,108060.0,0.00157345]
[1756762405427,6.68844843,108070.0,108060.0,0.00157345]
[1756762406248,6.68203597,108070.0,108060.0,0.00157345]
[1756762406703,6.68845154,108070.0,108060.0,0.00157345]
[1756762407151,6.68203597,108070.0,108060.0,0.00157345]
[1756762407793,6.68211597,108070.0,108060.0,0.00157345]
[1756762412496,6.69067342,108070.0,108060.0,0.00157345]
[1756762413464,6.72137632,108070.0,108060.0,0.00157345]
[1756762414572,6.7299347,108070.0,108060.0,0.00157345]
[1756762415417,6.7544835,108070.0,108060.0,0.00157345]
[1756762415618,6.75448581,108070.0,108060.0,0.00157345]
[1756762416281,6.7544864,108070.0,108060.0,0.00157345]
[1756762416634,0.34,108050.0,108040.0,0.00131631]
[1756762416835,6.47976856,108050.0,108040.0,0.00131631]
[1756762417226,0.18513375,108030.0,108020.0,0.00439751]
[1756762417462,1.13215785,108030.0,108020.0,0.00439751]
[1756762417673,1.12926514,108030.0,108020.0,0.00447751]
[1756762418120,1.13234514,108030.0,108020.0,0.00447751]
[1756762418335,0.96922514,108030.0,108020.0,0.00447751]
[1756762418547,1.13085645,108030.0,108020.0,0.00447751]
[1756762419427,1.13077645,108030.0,108020.0,0.00447751]
[1756762419640,1.17392756,108030.0,108020.0,0.00452751]
[1756762420055,1.17388756,108030.0,108020.0,0.00452751]
[1756762420548,0.82779986,108030.0,108020.0,0.00452751]
[1756762420770,0.57584387,108030.0,108020.0,0.00452751]
[1756762420992,0.73584387,108030.0,108020.0,0.00452751]
[1756762421645,0.38975617,108030.0,108020.0,0.00452751]
[1756762421867,0.73584387,108030.0,108020.0,0.1896784]
[1756762422259,0.73576387,108030.0,108020.0,0.1896784]
[1756762422695,0.73572387,108030.0,108020.0,0.1896784]
[1756762422903,0.00247131,108030.0,108020.0,0.1896784]
[1756762423119,0.69646547,108030.0,108020.0,0.1896784]
[1756762423351,0.34855901,108030.0,108020.0,0.1896784]
[1756762423559,0.50847901,108030.0,108020.0,0.1896784]
[1756762423988,0.16239131,108030.0,108020.0,0.1896784]
[1756762424601,0.34752506,108030.0,108020.0,0.1896784]
[1756762425846,0.18760506,108030.0,108020.0,0.1896784]
[1756762426085,0.00247131,108030.0,108020.0,0.62768209]
[1756762426502,0.00247131,108030.0,108020.0,0.28159439]
[1756762427129,0.00247131,108030.0,108020.0,0.62768209]
[1756762427341,0.00247131,108030.0,108020.0,0.78744209]
[1756762427547,0.00247131,108030.0,108020.0,0.80838091]
[1756762428410,0.00247131,108030.0,108020.0,0.85838091]
[1756762428839,0.00247131,108030.0,108020.0,1.27566861]
[1756762429075,1e-08,108030.0,108020.0,1.66566861]
[1756762429544,1e-08,108030.0,108020.0,0.97349321]
[1756762429754,1e-08,108030.0,108020.0,1.07096321]
[1756762429966,1e-08,108030.0,108020.0,1.12096321]
[1756762430239,0.07354631,108080.0,108070.0,0.18506523]
[1756762430459,0.07354631,108080.0,108070.0,0.45773072]
[1756762430675,0.07354631,108080.0,108070.0,0.85394842]
[1756762430894,0.07354631,108100.0,108090.0,0.18503099]
[1756762431106,0.07354631,108100.0,108090.0,0.78267468]
[1756762431316,0.07354631,108100.0,108090.0,0.78275468]
[1756762431535,0.46899649,108120.0,108100.0,0.1850003]
[1756762431746,0.30931649,108120.0,108100.0,0.1850003]
[1756762431955,0.45966751,108120.0,108110.0,0.18499676]
[1756762432167,0.2286512,108120.0,108110.0,0.18507676]
[1756762432380,0.19871079,108120.0,108110.0,0.18507676]
[1756762432804,0.01065114,108120.0,108110.0,0.18507676]
[1756762433026,0.35728287,108130.0,108110.0,0.18507676]
[1756762433242,0.002,108120.0,108110.0,0.18520744]
[1756762433449,0.38505087,108130.0,108110.0,0.18520744]
[1756762433664,0.19831269,108120.0,108110.0,0.00213068]
[1756762433870,0.19118965,108120.0,108110.0,0.00013068]
[1756762434487,0.19018965,108120.0,108110.0,0.00013068]
[1756762434635,0.19018965,108120.0,108110.0,0.00113068]
[1756762435268,0.55014543,108120.0,108110.0,0.00113068]
[1756762435497,5.58402341,108120.0,108110.0,0.00113068]
[1756762435696,6.28397919,108120.0,108110.0,0.00113068]
[1756762435821,0.18503099,108090.0,108070.0,0.41845105]
[1756762436042,0.1953092,108090.0,108070.0,0.51032704]
[1756762436302,0.1923892,108090.0,108070.0,0.51032704]
[1756762436785,0.1923892,108090.0,108070.0,0.43674073]
[1756762436992,0.1923892,108090.0,108070.0,0.43774073]
[1756762437204,0.1933892,108090.0,108070.0,0.44074073]
[1756762437632,0.18504811,108080.0,108070.0,0.44074073]
[1756762437898,0.18504811,108080.0,108070.0,0.44263073]
[1756762438134,0.19025811,108080.0,108070.0,0.28287073]
[1756762438355,0.19025811,108080.0,108070.0,0.43770073]
[1756762438580,0.18504811,108080.0,108070.0,0.43959073]
[1756762438788,0.18718955,108080.0,108070.0,0.43959073]
[1756762438991,0.18718955,108080.0,108070.0,0.43859073]
[1756762439193,0.18506523,108070.0,108060.0,0.18508226]
[1756762439414,0.18508236,108060.0,108040.0,0.54618636]
[1756762439625,0.18816236,108060.0,108040.0,0.43676657]
[1756762439850,0.18816236,108060.0,108050.0,0.00189]
[1756762440055,0.19029236,108060.0,108050.0,0.00189]
[1756762440482,0.19029236,108060.0,108040.0,0.43676657]
[1756762440688,0.18509949,108050.0,108040.0,0.43672657]
[1756762440888,0.18509949,108050.0,108040.0,0.09380599]
[1756762441106,0.18511662,108040.0,108020.0,0.18954645]
[1756762441359,0.19034375,108030.0,108020.0,0.0963135]
[1756762441599,0.19034375,108030.0,108020.0,0.00439751]
[1756762442356,0.19048508,108030.0,108020.0,0.00439751]
[1756762442591,0.64435685,108030.0,108020.0,0.00439751]
[1756762442819,0.73427284,108030.0,108020.0,0.00439751]
[1756762443030,0.73527284,108030.0,108020.0,0.00539751]
[1756762443270,0.89611284,108030.0,108020.0,0.00539751]
[1756762443492,0.18516803,108010.0,108000.0,0.06694469]
[1756762443731,0.8153966,108010.0,108000.0,0.06694469]
[1756762443951,0.46065082,108010.0,108000.0,0.06694469]
[1756762444167,0.44213402,108010.0,108000.0,0.06694469]
[1756762444384,5.6521358,108010.0,108000.0,0.06694469]
[1756762445721,6.56918703,108010.0,108000.0,1e-08]
[1756762445957,0.52518518,108000.0,107990.0,0.004]
[1756762446173,6.28207472,108000.0,107990.0,1e-08]
[1756762446386,6.28420472,108000.0,107990.0,1e-08]
[1756762446602,6.30875352,108000.0,107990.0,1e-08]
[1756762446818,6.46871352,108000.0,107990.0,1e-08]
[1756762447062,6.30875352,108000.0,107990.0,1e-08]
[1756762447291,5.74884196,108000.0,107990.0,1e-08]
[1756762447521,6.46875352,108000.0,107990.0,1e-08]
[1756762447730,0.52520233,107990.0,107980.0,0.00168151]
[1756762447953,0.18528812,107940.0,107920.0,0.05728]
[1756762448166,0.18528812,107940.0,107920.0,0.09919599]
[1756762448378,0.18530529,107930.0,107920.0,0.09919599]
[1756762448810,0.18530529,107930.0,107920.0,0.14919599]
[1756762449020,0.18544642,107930.0,107920.0,0.14919599]
[1756762449227,0.18532246,107920.0,107910.0,0.19243139]
[1756762449437,0.18532246,107920.0,107910.0,0.28434738]
[1756762449886,0.18533963,107910.0,107900.0,0.00044671]
[1756762450114,0.18533963,107910.0,107900.0,0.0923627]
[1756762450949,0.18533963,107910.0,107900.0,0.2525627]
[1756762451169,0.18533963,107910.0,107900.0,0.00044671]
[1756762451399,0.18633963,107910.0,107900.0,0.00044671]
[1756762452334,0.18833963,107910.0,107900.0,0.00044671]
[1756762453482,0.003,107910.0,107900.0,0.65861411]
[1756762455356,0.003,107910.0,107900.0,0.29865833]
[1756762455572,0.003,107910.0,107900.0,0.65861411]
[1756762456888,0.003,107910.0,107900.0,0.29865833]
[1756762457095,0.003,107910.0,107900.0,0.65861411]
[1756762459331,0.003,107910.0,107900.0,0.70861411]
[1756762459538,0.003,107910.0,107900.0,0.86897411]
[1756762459756,0.003,107910.0,107900.0,0.91897411]
[1756762460001,0.003,107910.0,107900.0,1.25897411]
[1756762462207,0.07368744,107930.0,107920.0,0.23532246]
[1756762462423,0.07368744,107930.0,107920.0,0.55891845]
[1756762462643,0.07368744,107930.0,107920.0,0.91887423]
[1756762462862,0.00014113,107930.0,107920.0,0.91887423]
[1756762463362,0.00014113,107930.0,107920.0,0.96887423]
[1756762463591,0.00114113,107930.0,107920.0,0.96887423]
[1756762464020,0.00637113,107930.0,107920.0,0.27723845]
[1756762464229,0.00637113,107930.0,107920.0,0.43775845]
[1756762464470,0.00837113,107930.0,107920.0,0.43975845]
[1756762465384,0.19367642,107930.0,107920.0,0.43975845]
[1756762466041,0.19367642,107930.0,107920.0,0.09391599]
[1756762466244,0.19367642,107930.0,107920.0,0.25443599]
[1756762466715,0.19367642,107930.0,107920.0,0.16256]
[1756762467497,0.63031002,107930.0,107920.0,0.002]
[1756762467771,0.5536322,107930.0,107920.0,0.002]
[1756762467881,0.19367642,107930.0,107920.0,0.002]
[1756762468283,0.00314113,107930.0,107920.0,0.76043423]
[1756762468483,0.00314113,107930.0,107920.0,0.81043423]
[1756762468931,0.00314113,107930.0,107920.0,0.91043423]
[1756762468932,0.00214113,107930.0,107920.0,0.91043423]
[1756762469131,0.00014113,107930.0,107920.0,0.90843423]
[1756762469328,0.00114113,107930.0,107920.0,0.90843423]
[1756762469529,0.00314113,107930.0,107920.0,0.91043423]
[1756762469734,0.00214113,107930.0,107920.0,0.91043423]
[1756762469959,0.10139231,107970.0,107960.0,0.18525379]
[1756762470167,0.07567631,107970.0,107960.0,0.18525379]
[1756762470566,0.07877631,107970.0,107960.0,0.18525379]
[1756762471221,0.07891841,107970.0,107960.0,0.18525379]
[1756762471466,0.0053721,107970.0,107960.0,0.18525379]
[1756762471646,0.0113721,107970.0,107960.0,0.18625379]
[1756762472524,0.0053721,107970.0,107960.0,0.18525379]
[1756762472944,0.0083721,107970.0,107960.0,0.18725379]
[1756762473388,0.0073721,107970.0,107960.0,0.18625379]
[1756762473606,0.0073721,107970.0,107960.0,0.27816978]
[1756762473835,0.0052421,107970.0,107960.0,0.27816978]
[1756762474026,0.0001421,107970.0,107960.0,0.27716978]
[1756762474562,0.0011421,107970.0,107960.0,0.28116978]
[1756762474795,0.0021421,107970.0,107960.0,0.28116978]
[1756762475014,0.0021421,107970.0,107960.0,0.64112556]
[1756762475480,0.0021421,107970.0,107960.0,0.69112556]
[1756762475922,1e-08,107970.0,107960.0,1.44108134]
[1756762476608,0.07673631,108010.0,108000.0,0.18518518]
[1756762476837,0.07687838,108010.0,108000.0,0.43730117]
[1756762477057,0.07368838,108010.0,108000.0,0.43730117]
[1756762477492,0.00014207,108010.0,108000.0,0.43730117]
[1756762477738,0.00014207,108010.0,108000.0,0.79725695]
[1756762478620,0.00114207,108010.0,108000.0,0.80025695]
[1756762479294,0.00114207,108010.0,108000.0,0.80125695]
[1756762479517,0.00114207,108010.0,108000.0,0.64105695]
[1756762479734,0.00633207,108010.0,108000.0,0.18918518]
[1756762479949,0.36628785,108010.0,108000.0,0.004]
[1756762480161,0.55145588,108010.0,108000.0,0.004]
[1756762481239,0.55145588,108010.0,108000.0,0.18918518]
[1756762482567,0.1915001,108010.0,108000.0,0.18918518]
[1756762482828,0.55145588,108010.0,108000.0,0.18918518]
[1756762484138,0.1915001,108010.0,108000.0,0.004]
[1756762484359,0.55145588,108010.0,108000.0,0.004]
[1756762484787,0.55145588,108010.0,108000.0,0.18918518]
[1756762485445,0.55145588,108010.0,108000.0,0.004]
[1756762485672,0.55145588,108010.0,108000.0,0.33918518]
[1756762487555,0.55145588,108010.0,108000.0,0.154]
[1756762487998,0.55145588,108010.0,108000.0,0.33918518]
[1756762489819,0.55145588,108010.0,108000.0,0.154]